bitfinex/quotes_ETHUSD_20240614
["timestamp","ask_amount","ask_price","bid_price","bid_amount"]
[1718402047323,2.8491,3509.9,3508.8,2.8499]
[1718402047554,7.2841,3510.8,3508.4,7.3018]
[1718402047555,0.28491,3509.8,3508.7,2.85003]
[1718402047847,0.28491,3509.8,3508.4,35.0]
[1718402047848,2.84942,3509.5,3508.4,37.85024]
[1718402048053,2.84951,3509.4,3508.5,3.0]
[1718402048225,2.84942,3509.5,3508.4,35.0]
[1718402048427,2.84957,3509.3,3508.2,7.3018]
[1718402048617,0.569899,3509.2,3508.3,3.0]
[1718402049039,3.419559,3509.2,3508.3,35.0]
[1718402049351,2.84983,3509.0,3508.4,3.0]
[1718402049531,2.84994,3508.9,3508.4,3.0]
[1718402049732,2.84982,3509.0,3508.0,3.0]
[1718402050061,0.569899,3509.2,3506.8,7.1928]
[1718402050062,2.85048,3508.2,3507.1,2.85128]
[1718402050230,2.85048,3508.2,3507.2,1.43344514]
[1718402050548,2.85076,3507.9,3506.9,35.0]
[1718402050753,2.85066,3508.0,3507.0,1.43344514]
[1718402050917,2.85019,3508.6,3506.3,2.85194]
[1718402050918,2.85122,3507.3,3506.3,2.85194]
[1718402051122,2.85128,3507.2,3506.4,35.0]
[1718402051433,2.85145,3507.0,3505.8,2.526]
[1718402051654,2.85152,3506.9,3505.9,2.8523]
[1718402051856,2.85161,3506.8,3505.8,5.3784]
[1718402052030,2.85171,3506.7,3506.0,36.43344514]
[1718402052357,2.85154,3506.9,3506.0,36.43344514]
[1718402052527,0.570294,3506.8,3505.4,2.85267]
[1718402052713,0.570294,3506.8,3505.2,2.85287]
[1718402052714,2.85185,3506.5,3505.5,2.85264]
[1718402053048,2.85218,3506.1,3505.0,40.37899]
[1718402053249,2.85218,3506.1,3505.1,1.43344514]
[1718402053455,2.85185,3506.5,3505.1,1.43344514]
[1718402053456,2.85207,3506.3,3505.1,1.43344514]
[1718402053615,2.85185,3506.5,3505.1,1.43344514]
[1718402053616,2.85226,3506.0,3505.1,1.43344514]
[1718402053816,2.85226,3506.0,3505.1,4.02738314]
[1718402054154,2.85243,3505.8,3505.0,37.526]
[1718402054340,2.85243,3505.8,3505.0,1.43344514]
[1718402054532,2.85259,3505.6,3505.0,1.43344514]
[1718402054946,2.85211,3506.2,3504.5,9.7188]
[1718402055156,2.85274,3505.4,3504.6,1.43344514]
[1718402055353,2.85274,3505.4,3504.6,2.54866965]
[1718402055673,2.85259,3505.6,3504.6,5.40204965]
[1718402056036,2.85275,3505.4,3504.6,2.54866965]
[1718402056355,2.85275,3505.4,3504.6,1.43344514]
[1718402056561,2.85264,3505.6,3504.0,2.526]
[1718402056852,2.85286,3505.3,3504.3,2.85362]
[1718402057071,2.85301,3505.1,3504.3,1.43344514]
[1718402057431,2.85284,3505.3,3504.3,4.28706514]
[1718402057625,2.85241,3505.9,3504.4,5.05605792]
[1718402057819,2.85217,3506.1,3504.6,2.85335]
[1718402058020,2.85212,3506.2,3504.7,1.4884467]
[1718402058352,2.8525,3505.7,3504.8,0.05705256]
[1718402058561,2.85242,3505.8,3504.8,0.05705256]
[1718402058772,2.85242,3505.8,3504.8,0.77675733]
[1718402058950,2.85253,3505.7,3504.8,0.77675733]
[1718402059147,2.85242,3505.8,3504.8,3.57290477]
[1718402059349,2.85222,3506.1,3504.2,3.0]
[1718402059350,2.85222,3506.1,3504.9,0.05705257]
[1718402059663,2.85167,3506.8,3505.0,3.95944514]
[1718402059836,2.85167,3506.8,3505.3,2.85274]
[1718402060175,2.85167,3506.8,3505.4,3.05703973]
[1718402060323,2.85167,3506.8,3505.5,0.59097797]
[1718402060525,2.85147,3507.0,3505.9,2.85233]
[1718402060764,2.85147,3507.0,3506.0,0.05703732]
[1718402060941,2.85147,3507.0,3506.1,2.85216]
[1718402061264,2.85121,3507.3,3506.3,2.852]
[1718402061572,2.85104,3507.5,3506.3,2.852]
[1718402061573,2.85104,3507.5,3506.5,2.85184]
[1718402061725,3.136224,3507.4,3506.3,2.85193]
[1718402061925,3.136224,3507.4,3506.4,2.90895078]
[1718402062130,2.85119,3507.3,3506.4,2.90895078]
[1718402062354,0.285104,3507.4,3506.4,0.05703078]
[1718402062554,2.85081,3507.8,3506.7,2.85168]
[1718402062868,0.3419719,3508.9,3507.5,2.85103]
[1718402062869,10.4585219,3508.9,3507.5,2.85103]
[1718402063068,2.84998,3508.8,3507.8,2.85077]
[1718402063230,2.84998,3508.8,3507.9,0.05700818]
[1718402063430,3.1918619,3508.9,3507.9,2.90770818]
[1718402063765,0.60416819,3508.8,3507.9,2.90770818]
[1718402063964,3.45415819,3508.8,3507.9,0.05700818]
[1718402064334,0.60416819,3508.8,3508.1,2.85054]
[1718402064628,0.60416819,3508.8,3508.0,0.0570082]
[1718402064629,5.84966,3509.2,3508.2,0.05700267]
[1718402064832,5.8495,3509.4,3508.3,0.05700263]
[1718402065075,5.8495,3509.4,3508.3,2.85037]
[1718402065372,2.84957,3509.3,3508.3,2.85037]
[1718402065582,3.0,3509.4,3507.1,3.0]
[1718402065583,5.74506214,3509.2,3507.1,3.0]
[1718402065727,2.85045,3508.3,3507.3,2.85115]
[1718402065929,2.85047,3508.2,3507.4,3.0]
[1718402066173,2.85047,3508.2,3506.7,3.0]
[1718402066174,2.85056,3508.1,3507.0,5.85137]
[1718402066478,2.84998,3508.8,3507.7,2.85086]
[1718402066681,1.311617,3509.2,3507.1,4.86357757]
[1718402066682,2.84997,3508.9,3507.8,2.85078]
[1718402066966,2.84997,3508.9,3507.9,2.85068]
[1718402067333,2.84997,3508.8,3507.9,2.85068]
[1718402067532,2.84997,3508.8,3507.8,2.85078]
[1718402067757,2.8503,3508.4,3507.3,2.85112]
[1718402067930,2.00342314,3508.7,3506.9,2.85148]
[1718402068131,2.85065,3508.0,3506.7,2.85161]
[1718402068357,2.85072,3507.9,3506.6,2.85171]
[1718402068559,2.85104,3507.5,3506.3,2.526]
[1718402068861,2.85085,3507.8,3506.7,2.85168]
[1718402068862,2.85095,3507.6,3506.7,2.85168]
[1718402069065,2.85095,3507.6,3506.4,2.85191]
[1718402069373,2.85118,3507.4,3506.5,2.85184]
[1718402069575,2.85118,3507.4,3506.6,0.05702824]
[1718402069788,2.85118,3507.4,3506.3,5.915782]
[1718402069789,2.85128,3507.2,3506.3,5.915782]
[1718402069971,2.85128,3507.2,3506.4,3.0]
[1718402070582,2.85128,3507.2,3505.8,5.37841]
[1718402070583,2.85138,3507.1,3506.1,2.85215]
[1718402070785,2.85144,3507.0,3506.1,4.28559514]
[1718402071082,2.85144,3507.0,3505.7,2.85243]
[1718402071083,2.85179,3506.6,3505.7,2.85243]
[1718402071289,2.85179,3506.6,3505.7,4.28587514]
[1718402071689,2.85168,3506.7,3505.7,1.43344514]
[1718402071897,2.85168,3506.7,3505.8,2.85241]
[1718402072208,1.36876164,3507.9,3506.7,2.85161]
[1718402072504,2.8502,3508.6,3506.8,0.05702187]
[1718402072505,10.86699,3508.3,3506.8,0.05702187]
[1718402072658,10.86699,3508.3,3507.0,2.85143]
[1718402072862,2.85063,3508.0,3507.0,2.85143]
[1718402073071,2.85119,3507.4,3506.2,2.85208]
[1718402073293,2.85119,3507.4,3505.1,3.60293]
[1718402073294,2.8514,3507.1,3505.7,2.85249]
[1718402073598,2.85127,3507.2,3506.0,2.85217]
[1718402073805,2.85148,3507.0,3505.6,2.85253]
[1718402074101,2.85179,3506.6,3505.3,2.85277]
[1718402074261,3.01899644,3507.9,3504.9,2.526]
[1718402074262,1.36876164,3507.7,3506.5,7.1963]
[1718402074470,2.85031,3508.4,3507.3,2.85114]
[1718402074723,0.42190716,3508.3,3507.1,2.85129]
[1718402074865,0.42190716,3508.3,3507.3,2.85111]
[1718402075065,6.9818,3508.9,3507.4,1.49046042]
[1718402075277,6.9818,3508.9,3507.8,2.85073]
[1718402075670,1.36876164,3509.6,3507.4,1.43344514]
[1718402075671,6.9818,3509.7,3508.4,5.7005]
[1718402075875,1.36876164,3509.9,3509.0,2.84974]
[1718402075876,2.84908,3509.9,3509.0,2.84974]
[1718402076122,2.84908,3509.9,3508.9,2.84989]
[1718402076287,0.284908,3509.8,3509.0,2.8498]
[1718402076487,0.284908,3509.8,3508.7,2.85004]
[1718402076488,0.1232236,3510.2,3509.1,2.84965]
[1718402076712,2.84893,3510.1,3509.1,2.84965]
[1718402076878,2.84893,3510.1,3509.0,2.84981]
[1718402077208,1.55666874,3510.2,3508.8,2.84997]
[1718402077209,2.84925,3509.7,3508.8,2.84997]
[1718402077514,2.84957,3509.3,3508.0,2.8506]
[1718402077720,3.134617,3509.2,3508.2,2.8504]
[1718402078010,3.134617,3509.2,3507.8,2.85078]
[1718402078011,11.26497514,3509.1,3507.8,2.85078]
[1718402078222,2.85007,3508.7,3507.7,2.85086]
[1718402078380,2.85014,3508.6,3507.7,2.85086]
[1718402078696,2.85007,3508.7,3507.2,10.04753]
[1718402078697,2.85038,3508.3,3507.2,2.85125]
[1718402079221,2.85038,3508.3,3507.3,2.85118]
[1718402079418,2.85038,3508.3,3507.1,2.85134]
[1718402079419,2.85049,3508.2,3507.2,2.85125]
[1718402079729,3.135197,3508.6,3507.4,2.85103]
[1718402079882,3.135197,3508.6,3506.8,2.85157]
[1718402080214,2.85063,3508.0,3507.0,2.85142]
[1718402080399,2.85078,3507.9,3506.9,2.85151]
[1718402080916,2.85078,3507.9,3506.5,7.1963]
[1718402080917,2.85088,3507.7,3506.6,2.85168]
[1718402081110,2.85088,3507.7,3506.7,4.28511514]
[1718402081480,2.85096,3507.6,3506.6,2.85168]
[1718402081673,2.85096,3507.6,3506.6,4.28512514]
[1718402081897,3.706213,3507.6,3506.5,2.85182]
[1718402082088,2.85103,3507.5,3506.6,3.0]
[1718402082288,2.85127,3507.3,3506.2,2.85205]
[1718402082508,2.85103,3507.5,3506.2,2.85205]
[1718402082694,2.85144,3507.0,3506.2,2.85205]
[1718402082902,2.85144,3507.0,3506.1,2.85217]
[1718402083449,3.421711,3507.0,3506.1,2.85217]
[1718402083654,2.8516,3506.8,3506.0,2.85225]
[1718402083810,2.8516,3506.8,3505.7,2.85242]
[1718402084007,2.85191,3506.5,3505.6,2.85257]
[1718402084208,2.85193,3506.4,3505.5,2.85265]
[1718402084409,2.85201,3506.3,3505.3,10.04911]
[1718402084644,2.85201,3506.3,3505.3,8.62974514]
[1718402084956,2.85201,3506.3,3505.3,4.28624514]
[1718402085257,2.85232,3506.0,3505.0,2.85306]
[1718402085548,2.85232,3506.0,3505.1,1.43344514]
[1718402085747,2.85234,3505.9,3505.1,1.43344514]
[1718402085955,0.30350589,3506.0,3505.1,1.43344514]
[1718402086421,2.85228,3506.0,3504.8,2.85315]
[1718402086629,2.85234,3505.9,3504.9,1.43344514]
[1718402086827,2.85234,3505.9,3504.9,4.28658514]
[1718402087044,3.422802,3505.9,3504.9,4.28658514]
[1718402087215,3.422802,3505.9,3504.9,1.43344514]
[1718402087216,2.85241,3505.8,3504.9,1.43344514]
[1718402088770,2.85241,3505.8,3504.9,4.28658514]
[1718402088920,2.8525,3505.7,3504.5,2.85339]
[1718402089112,2.8525,3505.7,3504.8,2.85322]
[1718402089311,2.8525,3505.7,3504.6,4.43344514]
[1718402089312,2.85259,3505.6,3504.6,5.85333]
[1718402089617,2.85282,3505.3,3504.1,10.1963]
[1718402089839,2.85282,3505.3,3504.2,1.43344514]
[1718402090044,2.85292,3505.2,3504.3,2.8536]
[1718402090351,2.85298,3505.1,3504.3,1.43344514]
[1718402091175,7.9641292,3505.7,3504.4,1.4905056]
[1718402091364,2.85277,3505.4,3504.4,0.05706046]
[1718402091876,2.85293,3505.2,3504.4,0.05706046]
[1718402092064,2.85309,3505.0,3504.4,0.05706046]
[1718402092256,2.85268,3505.5,3504.2,3.05706511]
[1718402092570,2.85298,3505.1,3504.3,0.05706511]
[1718402093057,3.422802,3505.9,3504.7,2.8533]
[1718402093259,0.570462,3505.9,3504.8,1.49049772]
[1718402093460,3.0,3506.6,3505.0,2.85298]
[1718402093671,2.85226,3506.0,3505.0,2.85298]
[1718402094967,2.85233,3505.9,3504.8,4.28665514]
[1718402095330,2.85233,3505.9,3504.9,2.85311]
[1718402095532,2.85233,3505.9,3504.9,4.28655514]
[1718402095755,2.85258,3505.6,3504.6,2.85338]
[1718402095958,2.85258,3505.6,3504.7,1.43344514]
[1718402096171,2.85258,3505.6,3504.6,2.85338]
[1718402096172,2.85249,3505.7,3504.6,1.43344514]
[1718402096374,2.85241,3505.8,3504.5,5.70678]
[1718402096536,2.85266,3505.5,3504.6,2.85338]
[1718402096969,2.85266,3505.5,3504.7,0.05678961]
[1718402097177,2.85266,3505.5,3504.6,2.85338]
[1718402097469,2.85266,3505.5,3504.4,2.85355]
[1718402097674,2.85283,3505.3,3504.4,6.18075314]
[1718402098078,2.85275,3505.4,3504.4,6.18075314]
[1718402098383,2.85275,3505.4,3504.5,2.85347]
[1718402098752,2.85275,3505.4,3504.4,6.18075314]
[1718402099153,2.85266,3505.5,3504.4,6.18075314]
[1718402099353,2.85275,3505.4,3504.5,3.47153531]
[1718402099554,0.57045,3505.9,3504.6,0.0510451]
[1718402099555,2.85264,3505.6,3504.6,0.0510451]
[1718402099962,2.85264,3505.6,3504.7,2.8533]
[1718402100576,2.85264,3505.6,3504.6,2.85339]
[1718402100774,2.8525,3505.7,3504.5,0.61807531]
[1718402100977,2.85266,3505.5,3504.5,0.61807531]
[1718402101151,2.85292,3505.2,3504.5,0.61807531]
[1718402101356,2.85274,3505.4,3504.4,1.893758]
[1718402101657,2.85285,3505.3,3504.5,0.05706421]
[1718402102286,2.85285,3505.3,3504.4,4.747288]
[1718402102692,2.85285,3505.3,3504.5,0.05706257]
[1718402102852,2.8529,3505.2,3504.5,0.05706257]
[1718402103187,2.8529,3505.2,3504.4,1.893758]
[1718402103387,2.85283,3505.3,3504.4,4.747308]
[1718402105018,2.85283,3505.3,3504.5,0.05706257]
[1718402106606,2.85275,3505.4,3504.5,2.91053257]
[1718402109616,4.4501905,3505.4,3504.5,2.91053257]
[1718402110316,2.85282,3505.3,3504.5,0.05706257]
[1718402111114,2.85282,3505.3,3504.4,2.85353]
[1718402111528,2.85282,3505.3,3504.1,7.3766]
[1718402111529,2.8529,3505.2,3504.3,2.85362]
[1718402111727,1.43772005,3505.3,3504.1,7.3766]
[1718402112048,2.85305,3505.1,3504.1,10.23038]
[1718402112263,2.85308,3505.0,3504.1,10.23038]
[1718402112912,2.85315,3504.9,3504.1,7.3766]
[1718402113430,2.85315,3504.9,3504.1,10.23039]
[1718402114259,2.85315,3504.9,3504.1,11.792124]
[1718402114612,2.85322,3504.9,3504.1,1.561734]
[1718402114860,2.85329,3504.8,3503.9,2.85394]
[1718402115149,2.85316,3504.9,3503.6,6.8507]
[1718402115150,2.85339,3504.6,3503.6,6.8507]
[1718402115373,2.85378,3504.2,3503.6,6.8507]
[1718402115530,2.85381,3504.1,3503.3,2.85443]
[1718402117060,2.8539,3504.0,3503.2,3.786771]
[1718402118163,2.8538,3504.1,3503.2,3.786771]
[1718402118344,2.8538,3504.1,3503.3,1.3492151]
[1718402118823,2.85394,3504.0,3503.3,1.3492151]
[1718402119637,2.85397,3503.9,3503.1,5.8546]
[1718402120566,2.85405,3503.8,3503.1,3.0]
[1718402120749,2.85405,3503.8,3502.7,2.85493]
[1718402120750,2.85436,3503.5,3502.7,2.85493]
[1718402120969,2.85436,3503.5,3502.7,3.711447]
[1718402121481,2.85452,3503.3,3501.8,1.141657]
[1718402121780,2.85452,3503.3,3501.9,4.28895514]
[1718402121781,2.85484,3502.9,3501.9,4.28895514]
[1718402121939,2.85485,3502.8,3501.7,0.24454856]
[1718402122381,2.85476,3503.0,3501.7,3.10028856]
[1718402122382,2.85503,3502.6,3501.7,3.10028856]
[1718402122594,2.85503,3502.6,3501.7,2.85574]
[1718402123093,2.85495,3502.7,3501.8,2.85566]
[1718402123243,3.140326,3502.9,3501.0,2.85625]
[1718402123244,2.85561,3501.9,3501.0,2.85625]
[1718402123442,2.85567,3501.8,3500.6,1.141998]
[1718402123640,2.85567,3501.8,3500.8,2.85648]
[1718402123880,2.56955265,3502.3,3500.7,0.3998678]
[1718402123881,2.85543,3502.1,3500.7,0.3998678]
[1718402124240,2.85567,3501.8,3500.7,3.2564378]
[1718402124441,2.85585,3501.6,3500.7,3.2564378]
[1718402124685,2.85585,3501.6,3500.8,0.86886109]
[1718402125452,2.85575,3501.7,3500.8,0.86886109]
[1718402125453,2.85595,3501.5,3500.8,0.86886109]
[1718402125880,2.85595,3501.5,3500.6,2.85665]
[1718402126083,2.85595,3501.5,3500.7,3.0]
[1718402126288,2.85575,3501.7,3500.4,2.85681]
[1718402126289,2.856,3501.4,3500.5,2.85673]
[1718402126582,2.856,3501.4,3500.5,4.29017514]
[1718402126786,2.85611,3501.3,3500.6,0.71469851]
[1718402126986,2.85611,3501.3,3500.4,2.85681]
[1718402127285,2.856,3501.4,3500.5,2.85673]
[1718402127945,2.85609,3501.3,3500.1,2.85705]
[1718402128278,1.43344514,3501.2,3499.7,9.96707]
[1718402128508,1.43344514,3501.2,3499.8,3.853967]
[1718402128509,2.85658,3500.7,3499.8,3.853967]
[1718402128695,2.85658,3500.7,3499.8,3.854007]
[1718402129015,2.85665,3500.6,3499.8,0.996707]
[1718402129202,2.85657,3500.7,3499.8,0.996707]
[1718402129550,2.8556,3501.9,3499.9,2.81555784]
[1718402129683,1.43344514,3501.8,3500.6,2.85662]
[1718402129879,4.43344514,3501.8,3500.6,2.85662]
[1718402130235,4.43344514,3501.8,3500.6,2.85665]
[1718402130236,2.85584,3501.6,3500.6,2.85665]
[1718402130397,2.85602,3501.4,3500.4,2.85677]
[1718402130604,2.85632,3501.0,3500.1,2.85698]
[1718402130797,2.85644,3500.9,3500.0,2.85714]
[1718402131003,2.85644,3500.9,3499.8,5.85729]
[1718402131004,2.85659,3500.7,3499.8,5.85729]
[1718402131307,2.85649,3500.8,3499.9,2.85722]
[1718402131484,0.04408055,3500.7,3499.9,2.85722]
[1718402134529,2.85694,3500.3,3499.0,2.533]
[1718402134735,2.85724,3499.9,3499.1,2.85787]
[1718402134893,2.85714,3500.0,3499.1,2.85787]
[1718402135089,0.04359099,3499.9,3499.1,2.85787]
[1718402136598,0.04359099,3499.9,3498.7,35.0]
[1718402136794,0.04359099,3499.9,3495.9,1.40464943]
[1718402136795,1.43344514,3499.8,3498.5,2.85836]
[1718402137016,1.43344514,3499.8,3497.9,6.8644]
[1718402137017,2.85773,3499.3,3498.4,2.85844]
[1718402137323,0.04298162,3499.2,3498.4,2.85844]
[1718402137518,2.85764,3499.4,3498.5,2.85836]
[1718402137695,0.04299603,3499.3,3498.5,2.85836]
[1718402138342,0.04299603,3499.3,3498.4,2.85844]
[1718402138547,3.429141,3499.4,3498.5,2.85833]
[1718402139048,0.04293679,3499.3,3498.5,2.85833]
[1718402139207,0.04293679,3499.3,3498.3,2.85852]
[1718402139398,3.429141,3499.4,3498.5,2.85836]
[1718402139399,0.571511,3499.4,3498.5,2.85836]
[1718402139593,9.69265,3499.5,3498.5,2.85836]
[1718402140040,0.0427807,3499.4,3498.6,2.85827]
[1718402140352,6.8351,3501.4,3500.0,2.85707]
[1718402140655,1.43344514,3501.1,3499.5,35.0]
[1718402140821,2.8562,3501.2,3499.5,37.85754]
[1718402140822,2.85665,3500.6,3499.5,37.85754]
[1718402141140,1.43344514,3500.5,3499.7,2.85737]
[1718402141443,0.03878664,3500.4,3499.7,2.85737]
[1718402141738,2.85641,3500.9,3500.0,2.85711]
[1718402141925,5.25908614,3500.8,3499.8,2.85727]
[1718402142142,0.03960888,3500.7,3499.9,2.85721]
[1718402143122,0.03960888,3500.7,3500.0,2.85713]
[1718402144045,0.03960888,3500.7,3500.1,2.85705]
[1718402144807,0.03960888,3500.7,3499.8,6.8644]
[1718402145054,0.03960888,3500.7,3500.6,8.56995]
[1718402145209,9.68991,3502.9,3501.6,2.85582]
[1718402145410,2.85503,3502.6,3501.7,35.0]
[1718402145650,0.570989,3502.5,3501.7,37.8557]
[1718402145816,0.570989,3502.5,3501.9,2.85558]
[1718402145817,0.60551711,3502.5,3501.9,2.85558]
[1718402146021,0.03452811,3502.5,3502.2,2.85534]
[1718402146244,0.03452811,3502.5,3502.4,5.71036]
[1718402146544,6.8351,3503.7,3502.8,2.85484]
[1718402146850,2.533,3504.6,3502.3,2.85523]
[1718402146851,0.03395227,3503.6,3502.3,2.85523]
[1718402147059,0.03395227,3503.6,3503.1,2.85461]
[1718402147349,0.03391232,3503.5,3503.2,2.85451]
[1718402147532,9.68873,3504.3,3503.1,37.85461]
[1718402147720,1.4674488,3504.2,3503.2,2.85449]
[1718402147919,0.03400366,3504.2,3503.8,2.85404]
[1718402148121,6.8351,3504.9,3504.0,2.85387]
[1718402148424,1.00285044,3504.8,3504.0,2.85387]
[1718402148634,1.00285044,3504.8,3503.8,2.85403]
[1718402148819,2.40226214,3504.8,3503.6,37.85418]
[1718402149032,2.40226214,3504.8,3503.8,2.85402]
[1718402149238,0.03469964,3504.7,3503.7,2.85411]
[1718402149438,1.21253418,3504.6,3503.7,2.85411]
[1718402149620,1.21253418,3504.6,3503.5,2.85427]
[1718402149621,4.06594418,3504.6,3503.5,2.85421]
[1718402149825,4.06594418,3504.6,3503.1,2.8546]
[1718402150142,0.03468211,3504.5,3503.6,2.85419]
[1718402150551,0.03468211,3504.5,3503.5,2.85427]
[1718402151052,0.03468211,3504.5,3503.6,2.85419]
[1718402152211,2.42883877,3504.4,3501.8,7.74519521]
[1718402152413,2.85389,3504.0,3502.2,2.85531]
[1718402152670,2.85432,3503.5,3502.3,3.0]
[1718402152843,1.43344514,3503.9,3502.3,2.85526]
[1718402152844,2.85454,3503.2,3502.3,2.85526]
[1718402153024,2.85454,3503.2,3502.4,3.0]
[1718402153344,2.85464,3503.1,3502.1,2.85535]
[1718402153665,0.03593316,3503.0,3502.3,2.85525]
[1718402154019,3.0,3503.6,3502.1,4.22911882]
[1718402154242,2.85437,3503.4,3502.2,2.85534]
[1718402154414,2.85437,3503.4,3501.4,2.85592]
[1718402154415,1.43344514,3503.3,3501.2,7.0395]
[1718402154615,2.85537,3502.2,3501.1,2.85623]
[1718402154816,2.85537,3502.2,3501.2,2.85613]
[1718402155044,0.03403641,3502.1,3501.1,2.85623]
[1718402155245,0.03403641,3502.1,3501.2,2.85615]
[1718402155520,2.85537,3502.2,3501.2,2.85615]
[1718402156940,9.88092,3502.0,3500.4,2.85674]
[1718402157276,1.4671318,3501.9,3500.4,2.85674]
[1718402157567,1.4671318,3501.9,3500.3,2.85689]
[1718402157568,2.85617,3501.2,3500.3,2.85689]
[1718402157881,1.43344514,3501.2,3499.9,2.533]
[1718402158085,1.43344514,3501.2,3499.9,2.7863]
[1718402158234,2.85649,3500.8,3499.0,2.85792]
[1718402158418,2.85649,3500.8,3499.5,36.43344514]
[1718402158619,2.85666,3500.6,3499.5,2.85754]
[1718402159156,2.8885143,3500.5,3499.4,35.0]
[1718402159319,2.8885143,3500.5,3499.4,37.85762]
[1718402159320,2.8569,3500.3,3499.4,37.85762]
[1718402159520,2.8569,3500.3,3499.5,2.86689028]
[1718402160266,2.85675,3500.5,3499.5,2.86689028]
[1718402160267,2.85698,3500.2,3499.5,2.86689028]
[1718402160641,2.85675,3500.5,3499.5,2.86689028]
[1718402160932,2.85707,3500.1,3499.5,2.86689028]
[1718402161159,2.8569,3500.3,3499.2,2.85776]
[1718402161334,2.85698,3500.2,3499.3,2.8577]
[1718402161688,0.03143904,3500.2,3500.0,2.85709]
[1718402161821,0.03143904,3500.2,3500.1,4.43344514]
[1718402162021,2.85567,3501.9,3500.6,2.8566]
[1718402162327,2.85543,3502.1,3500.8,2.85643]
[1718402162648,1.43344514,3502.1,3500.8,2.85643]
[1718402163065,2.85568,3501.8,3500.7,37.85649]
[1718402163232,2.85568,3501.8,3500.8,0.05712363]
[1718402163561,2.85573,3501.8,3500.7,37.85649]
[1718402163723,1.43344514,3502.1,3500.7,37.85649]
[1718402163724,2.85576,3501.7,3500.7,37.85649]
[1718402164080,1.43344514,3501.6,3499.6,2.8574]
[1718402164220,1.43344514,3501.4,3498.6,7.0395]
[1718402164420,2.85683,3500.4,3499.2,2.85775]
[1718402164665,2.85683,3500.4,3499.3,0.285775]
[1718402164821,2.85683,3500.4,3499.4,2.85762]
[1718402165021,2.85683,3500.4,3499.3,0.285775]
[1718402165987,2.85699,3500.2,3499.3,3.143475]
[1718402166746,2.85683,3500.4,3499.5,2.85748]
[1718402167318,2.8565,3500.8,3499.5,2.85748]
[1718402167525,0.03039114,3500.7,3500.6,2.85665]
[1718402167974,1.43344514,3502.0,3500.8,2.85647]
[1718402167975,2.85567,3501.9,3500.8,2.85647]
[1718402168273,1.46383316,3501.8,3500.9,2.85638]
[1718402168427,4.31950316,3501.8,3500.9,2.85638]
[1718402168622,0.03038802,3501.8,3501.3,2.85601]
[1718402168937,0.03038802,3501.8,3500.5,2.85669]
[1718402168938,7.0254,3502.2,3501.5,2.85587]
[1718402169351,0.02961421,3502.1,3501.5,2.85587]
[1718402170996,0.02961421,3502.1,3501.4,2.85599]
[1718402171287,7.0203,3502.7,3501.7,2.85569]
[1718402171438,0.02995723,3502.0,3501.7,2.85569]
[1718402171645,2.8547,3503.0,3501.9,2.85559]
[1718402171973,0.0299534,3501.9,3501.6,2.85578]
[1718402172142,2.85494,3502.7,3501.8,2.85567]
[1718402172333,0.03030208,3502.6,3501.8,2.85567]
[1718402172663,0.03030208,3502.6,3501.6,2.85583]
[1718402173031,0.03030208,3502.6,3501.7,2.85571]
[1718402173343,2.88533208,3502.6,3501.7,2.85571]
[1718402173550,2.88533208,3502.6,3501.4,0.856836]
[1718402173551,2.85528,3502.3,3501.4,3.712826]
[1718402173941,2.8551,3502.5,3501.4,3.712826]
[1718402173942,0.03034453,3502.2,3501.5,2.85591]
[1718402174136,2.85526,3502.3,3501.4,3.712826]
[1718402174436,0.03038695,3502.2,3501.5,2.85591]
[1718402174745,0.0303057,3502.1,3501.5,2.85591]
[1718402174945,0.0303057,3502.1,3501.4,0.856836]
[1718402175144,0.0303057,3502.1,3500.4,3.142493]
[1718402175145,1.46368376,3502.0,3500.2,6.7874]
[1718402175350,2.85664,3500.7,3499.6,9.64478]
[1718402175565,0.03008099,3500.6,3499.4,0.3143475]
[1718402175740,0.03008099,3500.6,3498.9,9.64536]
[1718402175741,0.03008099,3500.6,3499.9,2.85714]
[1718402175940,2.8565,3500.8,3499.9,2.85714]
[1718402176143,0.03006747,3500.5,3499.8,2.85729]
[1718402176348,2.8565,3500.8,3499.8,2.85729]
[1718402176549,2.85658,3500.7,3499.8,2.85729]
[1718402176754,2.85649,3500.8,3499.8,2.85729]
[1718402176950,0.02937092,3500.6,3499.8,2.85729]
[1718402177266,7.1606,3501.1,3500.0,2.85713]
[1718402177267,0.02936026,3500.5,3500.0,2.85713]
[1718402177469,10.01686,3501.1,3499.8,3.428757]
[1718402177684,0.0293496,3500.4,3500.3,8.57067]
[1718402177992,3.14400857,3502.1,3500.9,2.85637]
[1718402178193,0.02942929,3502.0,3501.0,2.85632]
[1718402178379,0.02942929,3502.0,3501.1,2.85623]
[1718402178695,0.02942929,3502.0,3501.2,2.85615]
[1718402178992,0.02942929,3502.0,3500.3,0.55]
[1718402178993,0.02942929,3502.0,3501.3,2.85606]
[1718402179353,0.02942929,3502.0,3501.4,2.85599]
[1718402179560,0.02942929,3502.0,3501.5,2.91295667]
[1718402179792,2.85469,3503.0,3501.8,2.85565]
[1718402179990,2.85486,3502.8,3501.8,2.85565]
[1718402180195,1.43344514,3502.9,3502.0,2.85547]
[1718402180196,0.02958991,3502.9,3502.0,2.85547]
[1718402180415,2.5847,3504.5,3502.0,2.85547]
[1718402180416,0.0298976,3502.7,3502.2,2.85534]
[1718402180692,1.3716496,3503.7,3502.7,2.85492]
[1718402180893,7.1606,3503.6,3502.1,3.0]
[1718402181097,10.04485543,3503.6,3502.5,2.85502]
[1718402181404,2.85429,3503.5,3502.3,2.85518]
[1718402181572,2.85439,3503.4,3502.4,0.571055]
[1718402181916,2.85453,3503.2,3502.4,0.571055]
[1718402182197,0.02986992,3503.1,3502.2,3.0]
[1718402182507,0.02986992,3503.1,3502.4,2.85515]